Cogmind - Beta 13 @@@ ROGUE MODE // 2024.04.02 @ 02:49:41 Player: KoT Result: Destroyed by as-09337 with Assembled Blade Performance ------------- Evolutions (0) 0 Regions Visited (2) 400 Robots Destroyed (17) 85 Value Destroyed (454) 454 Prototype IDs (2) 40 Alien Tech Used (0) 0 Bonus (0) 0 TOTAL SCORE: 979 Bonus ------- None Cogmind --------- Core Integrity 0/250 Matter 300/300 Energy 98/100 System Corruption 0% Temperature Cool (20) Movement Core (700) Ox13 Location -10/Mines Parts ------- > --- POWER (1) -------- (None) > --- PROPULSION (2) --- (None) > --- UTILITY (2) ------ High-capacity Storage Unit Signal Interpreter > --- WEAPON (2) ------- Light Assault Rifle > --- INVENTORY (20) --- Light Ion Engine High-capacity Storage Unit High-capacity Storage Unit Sensor Array Sensor Array Sensor Array Signal Interpreter Targeting Computer ECM Suite Light Armor Plating Light Armor Plating Peak State ------------ > --- POWER ------------ Light Ion Engine > --- PROPULSION ------- Light Treads Light Treads > --- UTILITY ---------- High-capacity Storage Unit Signal Interpreter > --- WEAPON ----------- Light Assault Rifle Grenade Launcher > --- INVENTORY -------- Light Ion Engine High-capacity Storage Unit High-capacity Storage Unit Sensor Array Sensor Array Sensor Array Signal Interpreter Targeting Computer ECM Suite Light Armor Plating Light Armor Plating Light Assault Rifle [Rating: 8] Favorites ----------- Power Light Ion Engine Engine Light Ion Engine Propulsion Light Treads Treads Light Treads Utility High-capacity Storage Unit Device Sensor Array Storage High-capacity Storage Unit Processor Signal Interpreter Protection Light Armor Plating Weapon Light Assault Rifle Energy Gun Medium Laser Ballistic Gun Light Assault Rifle Launcher Grenade Launcher Special Weapon Welding Torch Build | -11 -10 -10 ------- Run | Yrd Mat Min Slots Evolved . | . . . Power . | . . . Propulsion . | . . . Utility . | . . . Weapon . | . . . Parts Attached 23 | 6 14 3 Power 5 | 1 3 1 Engine 5 | 1 3 1 Core . | . . . Reactor . | . . . Propulsion 5 | 2 3 . Treads 5 | 2 3 . Leg . | . . . Wheel . | . . . Hover . | . . . Flight . | . . . Utility 5 | 1 4 . Device 1 | . 1 . Storage 2 | 1 1 . Processor 1 | . 1 . Hackware . | . . . Protection 1 | . 1 . Artifact . | . . . Weapon 8 | 2 4 2 Energy Gun 3 | 2 1 . Energy Cannon . | . . . Ballistic Gun 2 | . . 2 Ballistic Cannon . | . . . Launcher 2 | . 2 . Special Weapon 1 | . 1 . Impact Weapon . | . . . Slashing Weapon . | . . . Piercing Weapon . | . . . Special Melee Weapon . | . . . Unidentified Prototypes . | . . . Parts Lost 8 | . 2 6 Power 3 | . 1 2 Propulsion 2 | . . 2 Utility . | . . . Weapon 3 | . 1 2 Highest Loss Streak 3 | . 1 3 To Critical Strikes . | . . . Average Slot Usage (%) 82 | . 80 87 Engine 13 | . 12 13 Treads 24 | . 27 16 Storage 14 | . 14 14 Processor 7 | . 3 14 Protection 1 | . 2 . Energy Gun 4 | . 7 . Ballistic Gun 8 | . . 25 Launcher 6 | . 9 2 Naked Turns . | . . . Heaviest Build 50 | 12 50 47 Greatest Support 40 | 40 40 40 Greatest Overweight (x) 14 | . 14 2 Average Overweight (x) 1 | . . 1 Largest Inventory Capacity 20 | 8 20 20 Average Capacity 18 | 7 18 20 Most Carried 13 | 5 13 12 Average Carried 8 | 1 6 11 Final Capacity 20 | 8 20 20 Final Carried 13 | 1 13 11 Class Distribution -------------------- 100% | Mutant Dominant Class ---------------- Mutant | -10/Materials Mutant | -10/Mines Resources | -11 -10 -10 ----------- Run | Yrd Mat Min Matter Collected 521 | 198 270 53 Remotely . | . . . Salvage Created 522 | . 462 60 Parts 30 | . 29 1 Haulers Intercepted . | . . . Recyclers Shooed 2 | . 2 . Parts Field Recycled . | . . . Retrieved Matter . | . . . Parts Self-Destructed . | . . . Prevented . | . . . Kills | -11 -10 -10 ------- Run | Yrd Mat Min Combat Hostiles Destroyed 12 | . 10 2 Guns 6 | . 4 2 Cannons 1 | . 1 . AOE 4 | . 4 . Classes Destroyed 5 | . 5 . Builder 1 | . 1 . Recycler 1 | . 1 . Watcher 3 | . 3 . Swarmer 3 | . 3 . Grunt 9 | . 7 2 Best Kill Streak 4 | . 4 2 Combat Bots Only 3 | . 3 2 Max Kills in Single Turn 3 | . 3 1 Gunslinging . | . . . Exploded 3 | . 3 . Melee . | . . . Uniques/NPCs Destroyed . | . . . Combat | -11 -10 -10 -------- Run | Yrd Mat Min Hostile Shots Fired 107 | . 68 39 Missed 34 | . 25 9 Damage Taken 992 | . 503 489 Core 259 | . 122 137 Absorbed by Shields . | . . . Core Remaining (%) 100 | 100 . . Volleys Fired 80 | . 68 12 Largest 2 | . 2 2 Hottest 100 | . 100 50 Shots Fired 110 | . 88 22 Gun 98 | . 78 20 Cannon . | . . . Launcher 8 | . 6 2 Special 4 | . 4 . Kinetic 20 | . . 20 Thermal 82 | . 82 . Explosive 8 | . 6 2 Electromagnetic . | . . . Robot Hit Streak 7 | . 7 3 Robot Miss Streak 3 | . 3 3 Penetration Max . | . . . Secondary Targets 1 | . . 1 Max Gunslinging Chain 1 | . . 1 Shots Hit Robots 68 | . 57 11 Core Hits 33 | . 27 6 Critical Kills . | . . . Critical Parts Destroyed . | . . . Critical Strikes 1 | . 1 . Burn 1 | . 1 . Melee Attacks . | . . . Impact . | . . . Slashing . | . . . Piercing . | . . . Sneak Attacks . | . . . Combat Hostiles . | . . . Follow-up Attacks . | . . . Damage Inflicted 1082 | . 892 190 Guns 748 | . 662 86 Cannons . | . . . Explosions 309 | . 210 99 Melee . | . . . Ramming 15 | . 10 5 Kinetic 86 | . . 86 Thermal 672 | . 672 . Explosive 309 | . 210 99 Electromagnetic . | . . . Impact . | . . . Slashing . | . . . Piercing . | . . . Highest Corruption . | . . . Average Corruption . | . . . Corruption Purged . | . . . Corruption Blocked . | . . . Overload Shots . | . . . Overflow Damage . | . . . Projectiles . | . . . Explosions . | . . . Melee . | . . . Knockbacks . | . . . Impact . | . . . Kinetic . | . . . Secondary . | . . . Self-Inflicted Damage 48 | . 21 27 Shots 3 | . 1 2 Rammed 6 | . 4 2 Targets Rammed 7 | . 5 2 Kicked . | . . . Crushed 1 | . 1 . Highest Temperature 394 | . 394 34 Average Temperature 119 | . 127 10 Received Heat Transfer 394 | . 267 127 Effects 6 | . 6 . Shutdowns 1 | . 1 . Energy Bleed 2 | . 2 . Matter Decay 1 | . 1 . Short Circuit 1 | . 1 . Damage (minor) 1 | . 1 . Siege Activations . | . . . Robots Corrupted . | . . . Combat Hostiles . | . . . Parts Fried . | . . . Impact Corruptions . | . . . Robots Melted 1 | . 1 . Combat Hostiles 1 | . 1 . Parts Melted 4 | . 4 . Heat Transferred 2110 | . 2110 . Parts Sabotaged . | . . . Parts Stolen . | . . . Parts Stripped . | . . . Power Chain Reactions . | . . . Alert | -11 -10 -10 ------- Run | Yrd Mat Min Peak Influence 208 | . 208 33 Initial . | . . . Average 35 | . 50 6 Maximum Alert Level 1 | . 1 . Low Security (%) 99 | 100 98 100 Level 1 . | . 1 . Level 2 . | . . . Level 3 . | . . . Level 4 . | . . . Level 5 . | . . . High Security . | . . . Max Security . | . . . Squads Dispatched 1 | . 1 . Investigation . | . . . Extermination . | . . . Reinforcement 1 | . 1 . Assault . | . . . Garrison . | . . . Intercept . | . . . Searches Triggered . | . . . Construction Impeded . | . . . Haulers Reinforced . | . . . Active Scanning Responses . | . . . Cargo Convoy Interrupts . | . . . Stealth | -11 -10 -10 --------- Run | Yrd Mat Min Distress Signals 1 | . 1 . Communications Jammed . | . . . Distress Signals . | . . . Times Spotted 44 | . 30 14 Peak Tracking Total 12 | . 3 12 Tactical Retreats 3 | . 3 . Traps | -11 -10 -10 ------- Run | Yrd Mat Min Traps Triggered 3 | . 3 . Indirectly . | . . . Trap Hack Attempts . | . . . Triggered . | . . . Disarmed 10 | . 10 . Reprogrammed . | . . . Reused . | . . . Traps Extracted . | . . . Installed . | . . . Triggered . | . . . Machines | -11 -10 -10 ---------- Run | Yrd Mat Min Machines Disabled 2 | . 2 . Max in Single Turn 1 | . 1 . Machines Repaired . | . . . Machines Dismantled . | . . . Machines Sabotaged . | . . . Overloaded Fab Kills . | . . . Hacking | -11 -10 -10 --------- Run | Yrd Mat Min Machines Accessed 6 | . 6 . Terminals 6 | . 6 . Fabricators . | . . . Repair Stations . | . . . Recycling Units . | . . . Scanalyzers . | . . . Garrison Access . | . . . Total Hacks 16 | . 16 . Successful 11 | . 11 . Failed 5 | . 5 . Catastrophic . | . . . Database Lockouts . | . . . Manual . | . . . Terminals 16 | . 16 . Fabricators . | . . . Repair Stations . | . . . Recycling Units . | . . . Scanalyzers . | . . . Garrison Access . | . . . Terminal Hacks 11 | . 11 . Prototype ID Bank 1 | . 1 . Terminal Index 1 | . 1 . Locate Traps 3 | . 3 . Disarm Traps 2 | . 2 . Maintenance Status 2 | . 2 . Transport Status 1 | . 1 . Hauler Manifests 1 | . 1 . Fabricator Hacks . | . . . Repair Station Hacks . | . . . Recycling Unit Hacks . | . . . Scanalyzer . | . . . Garrison Access Hacks . | . . . Unauthorized Hacks . | . . . Terminals . | . . . Fabricators . | . . . Repair Stations . | . . . Recycling Units . | . . . Scanalyzers . | . . . Garrison Access . | . . . Data Cores Recovered . | . . . Used . | . . . Hacking Detections 4 | . 4 . Full Trace Events . | . . . Feedback Events . | . . . Feedback Blocked . | . . . Robot Schematics Acquired . | . . . Robots Built . | . . . Authchips . | . . . Time . | . . . Total Robot Build Rating . | . . . Part Schematics Acquired . | . . . Parts Built . | . . . Authchips . | . . . Time . | . . . Total Part Build Rating . | . . . Parts Repaired . | . . . Time . | . . . Parts Recycled . | . . . Recycled Matter . | . . . Retrieved Matter . | . . . Retrieved Components . | . . . Parts Scanalyzed . | . . . Part Schematics Acquired . | . . . Parts Damaged . | . . . Bothacking | -11 -10 -10 ------------ Run | Yrd Mat Min Used RIF Installer . | . . . Robots Hacked . | . . . Non-combat . | . . . Combat . | . . . Robot Hacks Applied . | . . . Relay Couplers Released . | . . . Fabnet Peak Effective % . | . . . Robots Rewired . | . . . Allies Hacked . | . . . Hacks Repelled . | . . . Allies | -11 -10 -10 -------- Run | Yrd Mat Min Total Allies . | . . . Largest Group . | . . . Highest-Rated Group . | . . . Highest-Rated Ally . | . . . Total Orders . | . . . Ally Attacks . | . . . Total Damage . | . . . Kills . | . . . Allies Corrupted . | . . . Allies Melted . | . . . Intel | -11 -10 -10 ------- Run | Yrd Mat Min Robot Analysis Total . | . . . Derelict Logs Recovered 1 | . . 1 Drone Launches . | . . . Drone Recoveries . | . . . Exploration | -11 -10 -10 ------------- Run | Yrd Mat Min Turns Passed 3192 | 59 2089 1044 Spaces Moved 1207 | 45 830 332 Core 23 | 22 1 . Treads 1184 | 23 829 332 Legs . | . . . Wheels . | . . . Hover . | . . . Flight . | . . . Fastest Speed 50 | 50 160 240 Average Speed 243 | 106 226 302 Slowest Speed 750 | 160 750 320 Overloaded Moves . | . . . Propulsion Burnouts . | . . . Robots Hopped . | . . . Cave-ins Triggered . | . . . Exploration Rate (%) 58 | 3 98 73 Regions Visited 2 Branch Regions 1 Pre-discovered Areas 1 | . . 1 Known Exits Taken 1 | . 1 . Unknown Exits Taken 1 | 1 . . Scrap Searched 2 | . . 2 Spaces Dug . | . . . Terrain Destroyed 58 | . 37 21 Melee . | . . . Projectile . | . . . AOE 58 | . 37 21 Terrain Rammed . | . . . Walls Destroyed . | . . . Machines Disabled . | . . . Actions | -11 -10 -10 --------- Run | Yrd Mat Min Total 1348 | 55 943 350 Wait . | . . . Move 1205 | 44 829 332 Hop . | . . . Pick Up 29 | 5 23 1 Fast Attach 2 | 2 . . Attach 19 | 4 12 3 Detach 2 | . 2 . Swap 2 | . 2 . Drop 2 | . 2 . Fire 80 | . 68 12 Melee . | . . . Ram . | . . . Kick . | . . . Crush 7 | . 5 2 Escape Stasis . | . . . Rewire . | . . . Trap . | . . . Miscellaneous . | . . . Route ------- -11/Scrapyard -10/Materials (discovered 4 exits: *Mat x3 / *Min) -10/Mines (discovered 3 exits: *Mat x2 / *Sub) History --------- Turn | Location | Event 6 | -11/Scrapyard | Discovered new exit (range 15) 60 | -11/Scrapyard | Entered Materials 139 | -10/Materials | Discovered new exit (range 6) 321 | -10/Materials | Build established: Mutant 438 | -10/Materials | Discovered new exit (range 16) 1509 | -10/Materials | Discovered new exit (range 10) 1568 | -10/Materials | Identified exit to Materials 1966 | -10/Materials | Discovered exit to Materials (range 6) 2146 | -10/Materials | Identified exit to Mines 2149 | -10/Materials | Entered Mines 2239 | -10/Mines | Discovered exit to Materials (range 8) 2322 | -10/Mines | Core integrity fell below 50% 2372 | -10/Mines | Lost 3 parts (1p1n1w) 2550 | -10/Mines | Discovered exit to Materials (range 5) 2553 | -10/Mines | Learned location of Storage (-9) 2633 | -10/Mines | Discovered new exit (range 14) 2716 | -10/Mines | Identified exit to Subcaves 3165 | -10/Mines | Assembled infested the area 3170 | -10/Mines | Assisted by a Guerilla fighting off Assembled 3189 | -10/Mines | Core integrity fell below 20% 3193 | -10/Mines | Destroyed by as-09337 with Assembled Blade Last Messages --------------- 02633_ EXIT=FOUND 02682_ T-07 Excavator is excavating. 02716_ EXIT=IDENTIFIED: SUBCAVES 02717_ U-05 Engineer lays Concrete. 02732_ T-07 Excavator is excavating. 03017_ Slammed into K-01 Serf. 03039_ Slammed into T-07 Excavator. 03103_ Searching scrap... 03103_ Found Com. Wheel. 03103_ Found 21 Matter. 03165_ ALERT: Infestation in the mines, dispatching Demolisher response squad. 03170_ A derelict emerges from the shadows: "You need to get out of here! I've been tracking a group of Assembled to figure out where they're coming from, and they're closing on this area, come on!" 03190_ Ion Engine destroyed. 03191_ Lgt. Treads destroyed. 03193_ Lgt. Assault Rifle destroyed. Map ----- +----------------------------------------------------+ | ## ##?????# #??### #### ##?????????????? | | #?????# #????# #??# ##??????????????? | | #???### #????# #??## #???????????????? | | #??## ###### #???# #???????????????? | | #??# ##### #???????????????? | | ### ##### ## ### #??????????????#? | | ??## %! ### #?#%#######??????????? ## | | ??## ! ! ### #?# ################ # | | ### ######## #?# % # | | ##??????# ####?########### | | #???????# #??????????????# #### | | ## ##???????## #??????????????# #????? | | ######??##????## #??????????????# #???????""" | | #??????# ##???# #??????????????# #?????????"? | | ##?????# #???# #??????????????# #??????????? | | ##?##### #???# #??????????????# #??????????? | | #### #??## ##??????????????# #??????????? | | #### ##???????????????# #??????????? | | ### ##????####????????# #??????????? | | #?# ##?????# ########?# #??????????? | | #??# #??????# ## ### #??????????? | | #??# ##??????# =% #??????????? | | #### ##????## #??????????? | | ### ## ##??## ######??????????? | | ##?# """ #??# ######???????????????? | | #??## """ #??# a@ ##????????????????????? | | ??#### # """ #### aa##?????????????????????? | | ??# ## ##a aa#??####????????????????? | | ??# ## ##### ##aaaa### ##???????????????? | | #?# ## #???## #### a #???????????????? | | ### ## #????## ##??## a """ ##??????????????? | | ## ## #?????## #????## """ ????????????? | | ## ######## #?????# """ $ ??????????? | | #?????# ###??????????????? | | < #?????## ##????????????????? | | ###########??????### #?????????????????? | | #???????????????????# #?????????????????? | | ##???????????????????? #?????????????????? | | ###????????????????????? #?????????????????? | | ##???????????????????????? #?????????????????? | | ##?????????????????????????#?????????????????? | | ###?????????????????????????????????????????? | | # ###???????????????????????????????????????? | | ## ##??????????????????????????????????????? | | ?# """ ##?????????????????????????????????????? | | ?# """ #?????????????????????????????????????? | | ?## """ #?????????????????????????????????????? | | ??## ##?????????????????????????????????????? | | ???## ##??????????????????????????????????????? | | ????# #???????????????????????????????????????? | +----------------------------------------------------+ Best States ------------- Heat Dissipation 25 Energy Generation 10 Energy Capacity 250 Matter Stores 300 Matter Capacity 300 Sight Range 16 Robot Scan Range 14 Terrain Scan Density 10 Armor Coverage 150 Evasion (%) 50 Recoil Reduction 2 Item Schematics ----------------- None Robot Schematics ------------------ None Fabricated ------------ Nothing Alien Tech Used ----------------- None Achievements -------------- It's Just You Challenges ------------ None Game ------ Seed PhasingSwordClaw Manual? 0 Play Time 00:19:13 Cumulative 11.9 hours Start 2024.04.02 @ 02:33:19 End 2024.04.02 @ 02:49:41 Sessions 1 Manual Loads 0 Difficulty Rogue Special Mode None Game No. 21 Rogue 21 Adventurer 0 Explorer 0 Win Type - Total 0 Types 0/0/0/0/0/0/0/0/0 Lore% 17 Gallery% 14 Achievement% 15 Wizard Run 0 Options --------- Layout 1 ASCII 0 Keyboard 0 Movement Mouse Keybinds 0 Fullscreen 1 Font 24/Smallcaps Map View 50x35 Zoom Use 0% Tactical HUD 1 Map Filters NONE Filters NONE Steam 0 RUN: e2ebb712-2dcd-4625-a0bc-ca0e245fe8d0